bitfinex/quotes_BTCUSD_20250508
["timestamp","ask_amount","ask_price","bid_price","bid_amount"]
[1746723763190,0.87863592,101230.0,101220.0,0.70846887]
[1746723763398,0.86016426,101230.0,101220.0,0.71934824]
[1746723763801,0.86016426,101230.0,101220.0,0.70946887]
[1746723764025,1.05773415,101230.0,101220.0,0.6995894]
[1746723764233,1.05773415,101230.0,101220.0,0.70946887]
[1746723764567,0.87864054,101230.0,101220.0,0.70946887]
[1746723764833,0.87864054,101230.0,101220.0,0.70846887]
[1746723765054,0.88851825,101230.0,101220.0,0.72822751]
[1746723765267,0.88951825,101230.0,101220.0,0.70746887]
[1746723765423,0.90039674,101230.0,101220.0,0.70746887]
[1746723765631,0.89051825,101230.0,101220.0,0.70746887]
[1746723766066,0.89051825,101230.0,101220.0,0.71734824]
[1746723766223,0.89051825,101230.0,101220.0,0.70746887]
[1746723766417,0.89051825,101230.0,101220.0,0.71734824]
[1746723766904,0.83836186,101230.0,101220.0,1.07802056]
[1746723767066,0.82382081,101230.0,101220.0,1.09777861]
[1746723767270,0.83369871,101230.0,101220.0,1.07802026]
[1746723767484,0.83369871,101230.0,101220.0,1.08789924]
[1746723768422,0.83369871,101230.0,101220.0,1.09777832]
[1746723768628,0.83369871,101230.0,101220.0,1.09777783]
[1746723768829,0.83369871,101230.0,101220.0,1.08789856]
[1746723769076,0.83369871,101230.0,101220.0,1.07801968]
[1746723770463,1.09696604,101230.0,101220.0,0.5]
[1746723770664,1.07721053,101230.0,101220.0,0.6975894]
[1746723771719,0.87964064,101230.0,101220.0,0.6975894]
[1746723771917,1.07721053,101230.0,101220.0,0.6975894]
[1746723772262,1.07721053,101230.0,101220.0,0.70741335]
[1746723772438,1.07721053,101230.0,101220.0,0.69753388]
[1746723773046,1.07721053,101230.0,101220.0,0.70741335]
[1746723773504,0.87964064,101230.0,101220.0,0.71729272]
[1746723773710,0.87964064,101230.0,101220.0,0.70741335]
[1746723773904,0.88657602,101230.0,101220.0,0.69753388]
[1746723774112,1.08414591,101230.0,101220.0,0.69753388]
[1746723774314,1.07426771,101230.0,101220.0,0.49994448]
[1746723774967,1.07426771,101230.0,101220.0,0.69753388]
[1746723775166,1.07426771,101230.0,101220.0,0.49994448]
[1746723775386,0.38146771,101230.0,101220.0,0.49994448]
[1746723775724,0.38146771,101230.0,101220.0,0.69753388]
[1746723776504,0.39134581,101230.0,101220.0,0.69753388]
[1746723778262,0.19377534,101230.0,101220.0,0.69753388]
[1746723778418,0.19377534,101230.0,101220.0,1.04832693]
[1746723778824,0.41110192,101230.0,101220.0,0.69753388]
[1746723779575,0.41110182,101230.0,101220.0,0.69753388]
[1746723781053,0.20365354,101230.0,101220.0,0.70741335]
[1746723781257,0.41110192,101230.0,101220.0,0.69753388]
[1746723781487,0.17401943,101230.0,101220.0,0.72717111]
[1746723781695,0.16859714,101230.0,101220.0,0.71729242]
[1746723781900,0.17847514,101230.0,101220.0,0.71729242]
[1746723782095,0.19357514,101230.0,101220.0,0.71729242]
[1746723782444,0.14417858,101230.0,101220.0,0.73705028]
[1746723782653,0.15405619,101230.0,101220.0,0.7271715]
[1746723782868,0.12807858,101230.0,101220.0,1.43863638]
[1746723783084,0.02741166,101230.0,101220.0,1.46923638]
[1746723783295,0.00893538,101230.0,101220.0,1.80923638]
[1746723783501,0.00046893,101240.0,101230.0,0.25780419]
[1746723783705,0.00046893,101240.0,101230.0,0.60859724]
[1746723784556,0.00046893,101240.0,101230.0,0.61159724]
[1746723784966,0.00046893,101240.0,101230.0,1.11153724]
[1746723785405,0.00046893,101240.0,101230.0,1.51153724]
[1746723785578,0.00046893,101240.0,101230.0,1.85153724]
[1746723785774,0.00046893,101240.0,101230.0,2.30299721]
[1746723786619,0.00046893,101240.0,101230.0,2.30699721]
[1746723786845,0.82267154,101290.0,101280.0,0.19747235]
[1746723787046,0.93192168,101290.0,101280.0,0.56810538]
[1746723787282,0.93606608,101290.0,101280.0,0.56810538]
[1746723787498,0.92748315,101290.0,101280.0,0.56810548]
[1746723787718,0.87269445,101290.0,101280.0,0.5779787]
[1746723788049,0.80333888,101290.0,101280.0,1.08779183]
[1746723788176,0.81721113,101290.0,101280.0,1.06804548]
[1746723788394,0.82708348,101290.0,101280.0,1.06804548]
[1746723788614,0.82708348,101290.0,101280.0,1.0779188]
[1746723788808,0.82708348,101290.0,101280.0,0.72712585]
[1746723789035,0.86965602,101290.0,101280.0,0.71725243]
[1746723789513,0.87565602,101290.0,101280.0,0.71725243]
[1746723789713,0.86578348,101290.0,101280.0,0.72712585]
[1746723789890,0.82321113,101290.0,101280.0,0.73699907]
[1746723790089,0.83308357,101290.0,101280.0,0.73699917]
[1746723790270,0.83308357,101290.0,101280.0,0.71725243]
[1746723790457,1.04040906,101290.0,101280.0,0.71725243]
[1746723790659,0.82321113,101290.0,101280.0,0.72712575]
[1746723790858,0.83308367,101290.0,101280.0,0.73699897]
[1746723791091,0.83308357,101290.0,101280.0,0.7468721]
[1746723791312,0.83308357,101290.0,101280.0,1.06804548]
[1746723791489,0.82321073,101290.0,101280.0,1.08779173]
[1746723791708,0.81333868,101290.0,101280.0,1.08779163]
[1746723791894,0.83308289,101290.0,101280.0,1.08779163]
[1746723792419,0.83695533,101290.0,101280.0,1.08779183]
[1746723792835,0.84095524,101290.0,101280.0,1.09766486]
[1746723793352,0.84095524,101290.0,101280.0,1.08779183]
[1746723793507,1.02853691,101290.0,101280.0,0.6975053]
[1746723793715,1.05913691,101290.0,101280.0,0.70737882]
[1746723793913,1.05913691,101290.0,101280.0,0.71725224]
[1746723794115,1.05513691,101290.0,101280.0,0.70737882]
[1746723794296,1.05813691,101290.0,101280.0,0.70737882]
[1746723794497,1.05813691,101290.0,101280.0,0.71725224]
[1746723794700,0.86068406,101290.0,101280.0,0.72712556]
[1746723795101,0.81033878,101290.0,101280.0,1.09766476]
[1746723795296,0.80046692,101290.0,101280.0,1.09766476]
[1746723795557,0.80046692,101290.0,101280.0,1.44845781]
[1746723795558,0.007,101290.0,101280.0,1.44845781]
[1746723795782,0.007,101290.0,101280.0,1.81845781]
[1746723796400,0.007,101290.0,101280.0,1.91912473]
[1746723796701,0.003,101290.0,101280.0,1.91912473]
[1746723797202,0.73228022,101310.0,101300.0,0.2171762]
[1746723797414,0.74215071,101310.0,101300.0,0.57784033]
[1746723797803,0.73228022,101310.0,101300.0,0.57784033]
[1746723798009,0.73228022,101310.0,101300.0,0.56796925]
[1746723798247,0.73228022,101310.0,101300.0,1.07778033]
[1746723798467,0.74215062,101310.0,101300.0,1.06790925]
[1746723798642,0.74515062,101310.0,101300.0,1.07778043]
[1746723798961,0.74915062,101310.0,101300.0,1.07778043]
[1746723799734,0.74915062,101310.0,101300.0,1.08765141]
[1746723800051,0.7491514,101310.0,101300.0,1.07778043]
[1746723800256,0.93669526,101310.0,101300.0,1.05803798]
[1746723800590,0.93669526,101310.0,101300.0,1.07778082]
[1746723800813,0.93669526,101310.0,101300.0,1.08765209]
[1746723801011,0.94656595,101310.0,101300.0,1.08765209]
[1746723801168,0.72941109,101310.0,101300.0,1.09752317]
[1746723801369,0.72941109,101310.0,101300.0,1.09752327]
[1746723801570,0.72941099,101310.0,101300.0,1.09752278]
[1746723801773,0.72941099,101310.0,101300.0,1.0876517]
[1746723801944,0.73928158,101310.0,101300.0,1.07778052]
[1746723803286,0.73928158,101310.0,101300.0,1.06790925]
[1746723803494,0.73928158,101310.0,101300.0,1.07778052]
[1746723803684,0.77008158,101310.0,101300.0,1.07778052]
[1746723804079,0.94775495,101310.0,101300.0,0.69737336]
[1746723804284,1.04842187,101310.0,101300.0,0.69737336]
[1746723804722,1.04842187,101310.0,101300.0,0.70724502]
[1746723804876,1.04842187,101310.0,101300.0,0.69737336]
[1746723805086,1.03842187,101310.0,101300.0,0.70724483]
[1746723805318,1.03842187,101310.0,101300.0,0.70724502]
[1746723805921,1.03842187,101310.0,101300.0,0.69737336]
[1746723806096,1.03842187,101310.0,101300.0,0.70724493]
[1746723806482,1.03842187,101310.0,101300.0,0.7171164]
[1746723806909,1.03842187,101310.0,101300.0,0.70724493]
[1746723807107,1.03842187,101310.0,101300.0,1.05803798]
[1746723808163,1.02855138,101310.0,101300.0,1.04816641]
[1746723808975,1.02855138,101310.0,101300.0,1.05803807]
[1746723809375,1.02855138,101310.0,101300.0,0.69737336]
[1746723810231,1.02855138,101310.0,101300.0,0.70724502]
[1746723811034,1.02855138,101310.0,101300.0,1.06790954]
[1746723811258,1.02855138,101310.0,101300.0,1.05803807]
[1746723811458,1.02855138,101310.0,101300.0,1.07778111]
[1746723811625,1.02855138,101310.0,101300.0,1.05803807]
[1746723812027,1.02855138,101310.0,101300.0,0.71711659]
[1746723812249,1.02855138,101310.0,101300.0,1.05803807]
[1746723812450,1.02855138,101310.0,101300.0,0.49994]
[1746723812852,1.02855138,101310.0,101300.0,0.69737336]
[1746723813119,1.02855138,101310.0,101300.0,0.49994]
[1746723813275,1.04309223,101310.0,101300.0,0.49994]
[1746723813482,1.38309223,101310.0,101300.0,0.49994]
[1746723813728,1.40152307,101310.0,101300.0,0.49994]
[1746723814099,1.75922784,101310.0,101300.0,0.49994]
[1746723814754,0.26353829,101290.0,101280.0,0.1975653]
[1746723814894,0.36420521,101290.0,101280.0,0.1975653]
[1746723815521,0.38263605,101290.0,101280.0,0.1975653]
[1746723815699,0.19505584,101290.0,101280.0,0.6975653]
[1746723815932,0.1851832,101290.0,101280.0,0.6975653]
[1746723816118,0.19505584,101290.0,101280.0,0.64107465]
[1746723816460,0.19705584,101290.0,101280.0,0.64107465]
[1746723816589,0.20692741,101290.0,101280.0,0.65094826]
[1746723816975,0.19805497,101290.0,101280.0,1.00174131]
[1746723817195,0.19805497,101290.0,101280.0,1.38215403]
[1746723817196,0.02143084,101290.0,101280.0,1.38215403]
[1746723817366,0.003,101290.0,101280.0,1.75205403]
[1746723818201,0.74440257,101310.0,101300.0,0.19743336]
[1746723818411,0.02961382,101300.0,101290.0,0.19743538]
[1746723818614,0.05174381,101290.0,101280.0,1.04307465]
[1746723818815,0.16228288,101290.0,101280.0,0.67469481]
[1746723819050,0.16228288,101290.0,101280.0,1.02348786]
[1746723819198,0.18074909,101290.0,101280.0,1.02348786]
[1746723819586,0.37820194,101290.0,101280.0,0.64307465]
[1746723819782,0.37820262,101290.0,101280.0,0.64307465]
[1746723820003,0.18011091,101290.0,101280.0,0.65294817]
[1746723820219,0.18998326,101290.0,101280.0,0.66082149]
[1746723820414,0.18998326,101290.0,101280.0,0.65094817]
[1746723820617,0.17023847,101290.0,101280.0,1.03136099]
[1746723820856,0.18011052,101290.0,101280.0,1.03136109]
[1746723821008,0.18998267,101290.0,101280.0,1.04223431]
[1746723821203,0.18998267,101290.0,101280.0,1.00274122]
[1746723821413,0.18998267,101290.0,101280.0,1.00374122]
[1746723821741,0.41184881,101290.0,101280.0,0.64307465]
[1746723821941,0.39210549,101290.0,101280.0,0.4456023]
[1746723822308,0.39210549,101290.0,101280.0,0.64302911]
[1746723822725,0.39210549,101290.0,101280.0,0.64202911]
[1746723823470,0.39210549,101290.0,101280.0,0.64102911]
[1746723823664,0.2025799,101290.0,101280.0,0.64102911]
[1746723823991,0.21345254,101290.0,101280.0,0.64102911]
[1746723824402,0.41090539,101290.0,101280.0,0.64102911]
[1746723824965,1.09370539,101290.0,101280.0,0.64102911]
[1746723825510,1.0739608,101290.0,101280.0,0.44355676]
[1746723825767,1.0739608,101290.0,101280.0,0.64102911]
[1746723826361,1.06408816,101290.0,101280.0,0.64102911]
[1746723830938,1.06408816,101290.0,101280.0,0.44355676]
[1746723831367,0.38128816,101290.0,101280.0,0.44355676]
[1746723832134,0.06798778,101280.0,101270.0,0.19748084]
[1746723832346,0.40370006,101280.0,101270.0,0.19748084]
[1746723832650,0.40370006,101280.0,101270.0,0.69748084]
[1746723832851,0.41062781,101280.0,101270.0,0.69748084]
[1746723833492,0.41062781,101280.0,101270.0,0.69848084]
[1746723833714,0.42050084,101280.0,101270.0,0.69948084]
[1746723833911,0.23290113,101280.0,101270.0,0.69948084]
[1746723834338,0.17886729,101280.0,101270.0,0.69948084]
[1746723834503,0.13809446,101280.0,101270.0,1.07989649]
[1746723834711,0.03049979,101280.0,101270.0,1.07989649]
[1746723834925,0.03049979,101280.0,101270.0,1.11039649]
[1746723835181,0.02126621,101280.0,101270.0,1.11039649]
[1746723835358,0.02126621,101280.0,101270.0,0.61094497]
[1746723835551,0.02126621,101280.0,101270.0,0.99494497]
[1746723835729,0.02126621,101280.0,101270.0,1.34573802]
[1746723836763,0.02126621,101280.0,101270.0,1.32598991]
[1746723836973,0.86597909,101280.0,101270.0,0.98507116]
[1746723837139,0.85610596,101280.0,101270.0,0.58507116]
[1746723837339,0.86597899,101280.0,101270.0,0.59494536]
[1746723837865,1.42878593,101280.0,101270.0,0.502]
[1746723838184,1.07799288,101280.0,101270.0,0.502]
[1746723838389,1.09415532,101280.0,101270.0,0.502]
[1746723838791,1.43415532,101280.0,101270.0,0.502]
[1746723839364,1.43415532,101280.0,101270.0,0.002]
[1746723839753,0.231781,101270.0,101260.0,0.19751079]
[1746723839966,0.37502192,101270.0,101260.0,0.19751079]
[1746723840426,0.14560684,101270.0,101260.0,0.56805458]
[1746723840575,0.14875504,101270.0,101260.0,0.56805458]
[1746723840800,0.13128883,101270.0,101260.0,1.05817931]
[1746723840998,0.13128883,101270.0,101260.0,1.04830384]
[1746723841225,0.12241463,101270.0,101260.0,1.06616044]
[1746723841416,0.13228874,101270.0,101260.0,0.71536739]
[1746723841613,0.14216313,101270.0,101260.0,0.69751079]
[1746723841906,0.14216313,101270.0,101260.0,0.70738635]
[1746723842358,0.14216313,101270.0,101260.0,0.69751079]
[1746723842555,0.17436313,101270.0,101260.0,0.69751079]
[1746723842738,0.16448874,101270.0,101260.0,0.70738626]
[1746723843031,0.15708733,101270.0,101260.0,0.71726172]
[1746723843246,0.15076143,101270.0,101260.0,0.71726172]
[1746723843630,0.15076143,101270.0,101260.0,0.70738635]
[1746723843845,0.38962826,101270.0,101260.0,0.69751079]
[1746723844050,0.37975435,101270.0,101260.0,0.69751079]
[1746723844512,0.19213709,101270.0,101260.0,0.69751079]
[1746723844855,0.1822625,101270.0,101260.0,0.69751079]
[1746723845061,0.17238811,101270.0,101260.0,0.69751079]
[1746723845273,0.1822626,101270.0,101260.0,0.69751079]
[1746723845471,0.37975445,101270.0,101260.0,0.69751079]
[1746723845892,0.36988035,101270.0,101260.0,0.69751079]
[1746723846522,0.15728801,101270.0,101260.0,1.06805487]
[1746723846725,0.16716172,101270.0,101260.0,1.07599002]
[1746723847017,0.15856342,101270.0,101260.0,0.69751079]
[1746723847215,0.17466342,101270.0,101260.0,0.69751079]
[1746723847419,0.14868883,101270.0,101260.0,0.70738616]
[1746723847619,0.15856322,101270.0,101260.0,0.70738635]
[1746723847815,0.14868883,101270.0,101260.0,0.70738635]
[1746723848069,0.14868883,101270.0,101260.0,1.0581794]
[1746723848371,0.36634851,101270.0,101260.0,0.69751079]
[1746723849214,0.36634851,101270.0,101260.0,0.70538288]
[1746723849747,0.36634851,101270.0,101260.0,0.69751079]
[1746723851273,0.38482406,101270.0,101260.0,0.69751079]
[1746723854621,0.13754247,101270.0,101260.0,1.0581794]
[1746723854814,0.02047555,101270.0,101260.0,1.11760492]
[1746723854995,0.002,101270.0,101260.0,1.11760492]
[1746723855199,0.002,101270.0,101260.0,1.51760492]
[1746723855638,0.002,101270.0,101260.0,1.48780492]
[1746723855863,0.002,101270.0,101260.0,1.13701187]
[1746723856036,0.001,101270.0,101260.0,1.13701187]
[1746723856259,0.33865547,101270.0,101260.0,1.09751079]
[1746723856598,0.16348903,101270.0,101260.0,0.72126182]
[1746723856721,0.35010746,101270.0,101260.0,0.70151135]
[1746723856945,0.15261561,101270.0,101260.0,0.70151135]
[1746723857147,0.15261561,101270.0,101260.0,0.70451135]
[1746723857516,0.18727522,101270.0,101260.0,0.70151135]
[1746723857707,0.18727483,101270.0,101260.0,0.70151135]
[1746723857931,0.20802283,101270.0,101260.0,0.71138682]
[1746723858109,0.2010909,101270.0,101260.0,0.70151135]
[1746723858516,0.20172291,101270.0,101260.0,0.69751135]
[1746723858661,0.19184832,101270.0,101260.0,0.69751135]
[1746723858858,0.39034105,101270.0,101260.0,0.69751135]
[1746723859101,0.18297461,101270.0,101260.0,0.69751135]
[1746723860304,0.18297461,101270.0,101260.0,0.70738691]
[1746723860508,0.18297461,101270.0,101260.0,0.69751135]
[1746723860722,0.19222198,101270.0,101260.0,0.69751135]
[1746723861741,0.18234759,101270.0,101260.0,0.70738691]
[1746723861945,0.20209647,101270.0,101260.0,0.69751135]
[1746723862304,0.39438097,101270.0,101260.0,0.69751135]
[1746723862605,0.38450658,101270.0,101260.0,0.69751135]
[1746723864901,0.37525921,101270.0,101260.0,0.69751135]
[1746723866589,0.3845089,101270.0,101260.0,0.69751135]
[1746723866932,0.3914476,101270.0,101260.0,0.69751135]
[1746723867136,0.4013218,101270.0,101260.0,0.69751135]
[1746723871156,0.17941432,101270.0,101260.0,0.69751135]
[1746723871295,0.19776262,101270.0,101260.0,0.69751135]
[1746723871500,0.39525447,101270.0,101260.0,0.69751135]
[1746723871703,0.41042002,101270.0,101260.0,0.69751135]
[1746723873189,0.20305378,101270.0,101260.0,0.69751135]
[1746723873308,0.21292817,101270.0,101260.0,0.69751135]
[1746723873723,0.41042002,101270.0,101260.0,0.69751135]
[1746723874826,0.42029461,101270.0,101260.0,0.69751135]
[1746723875408,0.3906724,101270.0,101260.0,0.69751135]
[1746723875605,0.38079801,101270.0,101260.0,0.69751135]
[1746723875811,0.37092342,101270.0,101260.0,0.69751135]
[1746723876924,0.38079791,101270.0,101260.0,0.69751135]
[1746723877129,0.39067211,101270.0,101260.0,0.69751135]
[1746723877715,0.38079791,101270.0,101260.0,0.69471135]
[1746723879112,0.36231281,101270.0,101260.0,0.69471135]
[1746723879687,0.37218701,101270.0,101260.0,0.69471135]
[1746723879899,0.3820616,101270.0,101260.0,0.69471135]
[1746723884965,1.74590596,101270.0,101260.0,0.4972]
[1746723885376,0.00987761,101230.0,101220.0,0.22711674]
[1746723885577,0.04127683,101240.0,101230.0,0.21543908]
[1746723885794,0.15182078,101240.0,101230.0,0.21732648]
[1746723886142,0.15182078,101240.0,101230.0,0.2250855]
[1746723886272,0.14194365,101240.0,101230.0,0.2250855]
[1746723886473,0.11706692,101240.0,101230.0,0.2349636]
[1746723886679,0.11054356,101240.0,101230.0,0.59563465]
[1746723886884,0.12042039,101240.0,101230.0,1.09563465]
[1746723887113,0.12042039,101240.0,101230.0,1.08575665]
[1746723887426,0.12042039,101240.0,101230.0,1.09663465]
[1746723887626,0.11054356,101240.0,101230.0,1.09663465]
[1746723887829,0.11054356,101240.0,101230.0,1.10751246]
[1746723888028,0.11054356,101240.0,101230.0,1.09763465]
[1746723888242,0.11054356,101240.0,101230.0,1.10751255]
[1746723888447,0.10066692,101240.0,101230.0,1.10751197]
[1746723889950,0.10066692,101240.0,101230.0,1.09763416]
[1746723890359,0.11054365,101240.0,101230.0,0.7369637]
[1746723890578,0.15112058,101240.0,101230.0,0.7369637]
[1746723891121,0.15112058,101240.0,101230.0,0.7172074]
[1746723891487,0.1609977,101240.0,101230.0,0.69956989]
[1746723891654,0.38296712,101240.0,101230.0,0.69956989]
[1746723892024,0.37309019,101240.0,101230.0,0.69956989]
[1746723892230,0.36321307,101240.0,101230.0,0.69956989]
[1746723894345,0.16566231,101240.0,101230.0,0.69956989]
[1746723894562,0.1557846,101240.0,101230.0,1.06024133]
[1746723894700,0.15112078,101240.0,101230.0,1.06024133]
[1746723894924,0.160998,101240.0,101230.0,1.05036294]
[1746723895125,0.160998,101240.0,101230.0,1.06830854]
[1746723895356,0.160998,101240.0,101230.0,0.71751549]
[1746723895739,0.10066692,101240.0,101230.0,1.08806503]
[1746723895927,0.11054356,101240.0,101230.0,1.09794303]
[1746723896134,0.12042039,101240.0,101230.0,1.08806503]
[1746723896332,0.13029732,101240.0,101230.0,1.08806522]
[1746723896545,0.14017435,101240.0,101230.0,1.09794342]
[1746723896762,0.17187435,101240.0,101230.0,1.09794342]
[1746723897137,0.16199732,101240.0,101230.0,1.09794342]
[1746723897366,0.17187435,101240.0,101230.0,1.09794342]
[1746723897987,0.17187435,101240.0,101230.0,1.08806522]
[1746723898968,0.13602039,101240.0,101230.0,1.09794322]
[1746723899140,0.7245,101250.0,101240.0,0.20742769]
[1746723899346,0.85479498,101250.0,101240.0,0.55822084]
[1746723899913,0.17187142,101250.0,101240.0,0.54834342]
[1746723900122,0.17187142,101250.0,101240.0,0.19755037]
[1746723900682,0.17187142,101250.0,101240.0,0.69755037]
[1746723900825,0.17287142,101250.0,101240.0,0.69755037]
[1746723901508,0.37040228,101250.0,101240.0,0.69755037]
[1746723902421,0.38027882,101250.0,101240.0,0.69755037]
[1746723903704,0.18274796,101250.0,101240.0,0.69755037]
[1746723904529,0.36519161,101250.0,101240.0,0.69755037]
[1746723906668,0.16766075,101250.0,101240.0,0.69755037]
[1746723906869,0.15778363,101250.0,101240.0,1.05822074]
[1746723907070,0.18741247,101250.0,101240.0,1.04834342]
[1746723907273,0.38494333,101250.0,101240.0,0.69755037]
[1746723907496,0.37506747,101250.0,101240.0,0.69755037]
[1746723908923,0.17753583,101250.0,101240.0,0.70742779]
[1746723909166,0.38494313,101250.0,101240.0,0.69755037]
[1746723909566,0.37506737,101250.0,101240.0,0.69755037]
[1746723910178,0.37506737,101250.0,101240.0,0.71295035]
[1746723911058,0.37506737,101250.0,101240.0,0.51539998]
[1746723911265,0.36519132,101250.0,101240.0,0.51539998]
[1746723912660,0.37212595,101250.0,101240.0,0.51539998]
[1746723913609,0.37212595,101250.0,101240.0,0.50839241]
[1746723914113,1.11190795,101250.0,101240.0,0.51456851]
[1746723914267,1.062919,101250.0,101240.0,0.01539998]
[1746723914472,1.41371205,101250.0,101240.0,0.00922388]
[1746723914671,0.00987722,101240.0,101220.0,0.0061761]
[1746723914928,0.3504931,101230.0,101220.0,0.0061761]
[1746723915323,0.3504931,101230.0,101210.0,0.00959964]
[1746723915324,0.25450952,101220.0,101210.0,0.00959964]
[1746723915478,0.35517644,101220.0,101210.0,0.00959964]
[1746723915674,1.13593759,101220.0,101210.0,0.00959964]
[1746723916110,0.70211107,101220.0,101210.0,0.00959964]
[1746723916346,0.70211107,101220.0,101210.0,0.00037576]
[1746723916347,1.05290412,101220.0,101210.0,0.00037576]
[1746723916513,1.05290412,101220.0,101210.0,0.00137576]
[1746723917828,1.05161383,101220.0,101210.0,0.00137576]
[1746723918072,1.05161383,101220.0,101210.0,0.00037576]
[1746723918269,0.70082078,101220.0,101210.0,0.00037576]
[1746723918410,0.70082078,101220.0,101210.0,0.00137576]
[1746723918607,0.70884177,101220.0,101210.0,0.00137576]
[1746723920567,1.05963482,101220.0,101210.0,0.00137576]
[1746723923529,0.70884177,101220.0,101210.0,0.00137576]
[1746723928530,0.71400067,101220.0,101210.0,0.00137576]
[1746723929838,0.71400067,101220.0,101210.0,0.54977774]
[1746723929839,0.72050875,101220.0,101210.0,0.54977774]
[1746723930041,0.70732886,101220.0,101210.0,0.54977774]
[1746723930258,0.12042497,101220.0,101210.0,0.55965808]
[1746723930632,0.14018303,101220.0,101210.0,0.54977774]
[1746723930833,0.14484441,101220.0,101210.0,1.04977774]
[1746723931035,0.15472378,101220.0,101210.0,1.04977774]
[1746723931367,0.33777233,101220.0,101210.0,0.69898469]
[1746723931573,0.36110549,101220.0,101210.0,0.69898469]
[1746723933735,0.37314802,101220.0,101210.0,0.50137576]
[1746723933941,0.36326885,101220.0,101210.0,0.50137576]
[1746723934399,0.36326885,101220.0,101210.0,0.00137576]
[1746723934588,0.36294607,101220.0,101210.0,0.00137576]
[1746723936177,0.71373912,101220.0,101210.0,0.00137576]
[1746723937329,0.36294607,101220.0,101210.0,0.00137576]
[1746723937668,0.70294607,101220.0,101210.0,0.00137576]
[1746723939433,0.70986406,101220.0,101210.0,0.00137576]
[1746723942667,1.06065711,101220.0,101210.0,0.00137576]
[1746723943468,0.70986406,101220.0,101210.0,0.00137576]
[1746723944146,1.06065711,101220.0,101210.0,0.00137576]
[1746723944699,0.70986406,101220.0,101210.0,0.00137576]
[1746723944900,1.06065711,101220.0,101210.0,0.00137576]
[1746723946153,1.06581601,101220.0,101210.0,0.00137576]
[1746723956431,0.71502296,101220.0,101210.0,0.00137576]
[1746723957149,0.69962296,101220.0,101210.0,0.00137576]
[1746723957307,0.71592296,101220.0,101210.0,0.00137576]
[1746723957926,0.66868211,101220.0,101210.0,0.19898469]
[1746723958130,0.68328176,101220.0,101210.0,0.19898469]
[1746723958315,0.68794353,101220.0,101210.0,0.19898469]
[1746723958522,0.68794353,101220.0,101210.0,0.20823466]
[1746723959592,0.13059529,101220.0,101210.0,0.61936786]
[1746723959798,0.0157103,101220.0,101210.0,0.61936786]
[1746723960052,0.0157103,101220.0,101210.0,1.81016091]
[1746723960281,0.0157103,101220.0,101210.0,1.80839701]
[1746723960518,0.00879231,101220.0,101210.0,1.81457316]
[1746723960722,0.00879231,101220.0,101210.0,1.81357316]
[1746723960957,0.02962825,101250.0,101230.0,0.22720419]
[1746723961172,0.10071378,101250.0,101240.0,0.24435731]
[1746723961375,0.10071378,101250.0,101240.0,0.6030521]
[1746723961632,4.686e-05,101250.0,101240.0,0.63171631]
[1746723962045,4.686e-05,101250.0,101240.0,0.64093223]
[1746723962267,4.686e-05,101250.0,101240.0,0.29013918]
[1746723962473,0.00992272,101250.0,101240.0,0.25588523]
[1746723962682,0.33253788,101250.0,101240.0,0.21294244]
[1746723962889,0.13500644,101250.0,101240.0,0.21294244]
[1746723963062,0.13500644,101250.0,101240.0,0.72281986]
[1746723963301,4.686e-05,101250.0,101240.0,0.76285829]
[1746723963506,4.686e-05,101250.0,101240.0,1.12352817]
[1746723963819,4.686e-05,101250.0,101240.0,1.13142788]
[1746723964049,4.686e-05,101250.0,101240.0,1.1406438]
[1746723964452,4.686e-05,101250.0,101240.0,1.5406438]
[1746723965493,4.686e-05,101250.0,101240.0,1.1406438]
[1746723966133,4.686e-05,101250.0,101240.0,1.5406438]
[1746723966719,0.00763077,101250.0,101240.0,1.5406438]
[1746723966921,4.686e-05,101250.0,101240.0,1.5406438]
[1746723967174,0.00761641,101250.0,101240.0,1.5406438]
[1746723967401,4.686e-05,101250.0,101240.0,1.5406438]
[1746723967543,0.00761354,101250.0,101240.0,1.5406438]
[1746723967732,4.686e-05,101250.0,101240.0,1.5406438]
[1746723967928,0.00762216,101250.0,101240.0,1.5456438]
[1746723968131,4.686e-05,101250.0,101240.0,1.5456438]
[1746723968399,0.00762216,101250.0,101240.0,1.5456438]
[1746723968550,4.686e-05,101250.0,101240.0,1.5456438]
[1746723968888,4.686e-05,101250.0,101240.0,1.5496438]
[1746723969126,0.00762216,101250.0,101240.0,1.5496438]
[1746723969301,4.686e-05,101250.0,101240.0,1.5496438]
[1746723969508,0.00762503,101250.0,101240.0,1.5496438]
[1746723969707,4.686e-05,101250.0,101240.0,1.5496438]
[1746723970029,0.00761928,101250.0,101240.0,1.5496438]
[1746723970280,4.686e-05,101250.0,101240.0,1.5496438]
[1746723970488,0.00761928,101250.0,101240.0,1.90043685]
[1746723970698,4.686e-05,101250.0,101240.0,1.5496438]
[1746723970898,0.01029515,101250.0,101240.0,1.5496438]
[1746723971028,4.686e-05,101250.0,101240.0,1.5496438]
[1746723971212,0.01030281,101250.0,101240.0,1.5496438]
[1746723972000,0.01030281,101250.0,101240.0,1.16935075]
[1746723972710,0.01030281,101250.0,101240.0,1.18535075]
[1746723972896,0.01030281,101250.0,101240.0,1.5361438]
[1746723973475,0.03993126,101250.0,101240.0,1.12984215]
[1746723973702,0.03993126,101250.0,101240.0,1.15947381]
[1746723973703,0.01030281,101250.0,101240.0,1.15947381]
[1746723973878,0.01030281,101250.0,101240.0,0.76013472]
[1746723974081,0.01030281,101250.0,101240.0,1.11092777]
[1746723975037,0.01030281,101250.0,101240.0,0.89235877]
[1746723975254,0.01030281,101250.0,101240.0,1.08990914]
[1746723975751,0.01030281,101250.0,101240.0,1.099062]
[1746723976232,0.02017847,101250.0,101240.0,1.099062]
[1746723976433,0.03005442,101250.0,101240.0,0.71863778]
[1746723976700,0.03005442,101250.0,101240.0,0.728515]
[1746723977047,0.03005442,101250.0,101240.0,0.71863778]
[1746723977241,0.03005442,101250.0,101240.0,0.728515]
[1746723977655,0.03005442,101250.0,101240.0,0.71936214]
[1746723978559,0.03005433,101250.0,101240.0,0.72923926]
[1746723978772,0.03993038,101250.0,101240.0,0.71936214]
[1746723978973,0.03005433,101250.0,101240.0,0.72923926]
[1746723979235,0.03993038,101250.0,101240.0,0.71936214]
[1746723979726,0.03993038,101250.0,101240.0,0.70948492]
[1746723979869,0.03993038,101250.0,101240.0,0.71936214]
[1746723980474,0.03993038,101250.0,101240.0,0.70948492]
[1746723980699,0.03993038,101250.0,101240.0,0.70948502]
[1746723980901,0.01030281,101250.0,101240.0,0.71936234]
[1746723981102,0.01030281,101250.0,101240.0,1.08990934]
[1746723981952,0.01030281,101250.0,101240.0,1.0990622]
[1746723982921,0.01030281,101250.0,101240.0,0.74826915]
[1746723983132,0.01030281,101250.0,101240.0,1.1149622]
[1746723983510,0.01030281,101250.0,101240.0,0.76416915]
[1746723983682,0.01030281,101250.0,101240.0,1.1149622]
[1746723984498,0.01030281,101250.0,101240.0,1.1294622]
[1746723984623,0.01030281,101250.0,101240.0,1.4694622]
[1746723984835,0.01030281,101250.0,101240.0,2.22025525]
[1746723985255,0.01030281,101250.0,101240.0,1.8694622]
[1746723985462,0.01030281,101250.0,101240.0,2.32092217]
[1746723987845,1.36957481,101300.0,101290.0,0.19745285]